Cogmind - Beta 14 @@@ ROGUE MODE // 2025.03.25 @ 19:07:37 Player: tareth Result: Self-destructed Performance ------------- Evolutions (2) 1000 Regions Visited (3) 600 Robots Destroyed (26) 130 Value Destroyed (669) 669 Prototype IDs (0) 0 Alien Tech Used (0) 0 Bonus (0) 0 TOTAL SCORE: 2399 Bonus ------- None Cogmind --------- Core Integrity 410/550 Matter 235/300 Energy 265/265 System Corruption 0% Temperature Danger (426) Movement Rolling (86) Location -8/Materials Parts ------- > --- POWER (1) -------- Improved Ion Engine > --- PROPULSION (3) --- Wheel Wheel Compact Wheel > --- UTILITY (4) ------ Medium Storage Unit Seismic Detector > --- WEAPON (3) ------- Particle Gun Light Assault Rifle Gauss Rifle > --- INVENTORY (10) --- Ion Engine Light Ion Engine Wheel High-capacity Matter Pod (200) Medium Laser Small Laser Small Laser Mining Claw Peak State ------------ > --- POWER ------------ Improved Ion Engine > --- PROPULSION ------- Wheel Wheel Compact Wheel > --- UTILITY ---------- Medium Storage Unit Improved Sensor Array Seismic Detector > --- WEAPON ----------- Particle Gun Light Assault Rifle Gauss Rifle > --- INVENTORY -------- Ion Engine Light Ion Engine Wheel High-capacity Matter Pod Medium Laser Small Laser Small Laser Mining Claw [Rating: 17] Favorites ----------- Power Light Ion Engine Engine Light Ion Engine Power Core Light Nuclear Core Propulsion Compact Wheel Wheel Compact Wheel Utility Light Armor Plating Device Seismic Detector Storage Medium Storage Unit Protection Light Armor Plating Weapon Light Assault Rifle Energy Gun Medium Laser Ballistic Gun Light Assault Rifle Special Weapon Mining Laser Slashing Weapon Mining Claw Build | -11 -10 -9 -8 ------- Run | Yrd Mat Mat Mat Slots Evolved 4 | . . 2 2 Power . | . . . . Propulsion 1 | . . . 1 Utility 2 | . . 1 1 Weapon 1 | . . 1 . Parts Attached 39 | 7 4 9 19 Power 3 | 1 . . 2 Engine 2 | 1 . . 1 Core 1 | . . . 1 Reactor . | . . . . Propulsion 7 | 2 1 1 3 Treads . | . . . . Leg . | . . . . Wheel 7 | 2 1 1 3 Hover . | . . . . Flight . | . . . . Utility 10 | 2 2 2 4 Device 5 | 1 1 . 3 Storage 3 | 1 1 . 1 Processor . | . . . . Hackware . | . . . . Protection 2 | . . 2 . Artifact . | . . . . Weapon 19 | 2 1 6 10 Energy Gun 9 | . . 3 6 Energy Cannon . | . . . . Ballistic Gun 5 | 2 1 . 2 Ballistic Cannon . | . . . . Launcher . | . . . . Special Weapon 2 | . . 2 . Impact Weapon . | . . . . Slashing Weapon 3 | . . 1 2 Piercing Weapon . | . . . . Special Melee Weapon . | . . . . Unidentified Prototypes . | . . . . Parts Lost 10 | . 1 1 8 Power 1 | . . . 1 Propulsion 2 | . . . 2 Utility 6 | . 1 1 4 Weapon 1 | . . . 1 Highest Loss Streak 3 | . 1 1 3 To Critical Strikes . | . . . . Average Slot Usage (%) 94 | . 95 98 91 Engine 10 | . 14 11 8 Wheel 25 | . 28 22 25 Device 9 | . 9 3 13 Storage 10 | . 14 11 9 Protection 8 | . . 17 7 Energy Gun 3 | . . 3 5 Ballistic Gun 21 | . 28 22 16 Slashing Weapon 3 | . . 4 4 Peak Build Rating 17 | 7 10 12 17 Average Rating 10 | 4 8 10 13 On Entrance 6 | . 7 10 10 Naked Turns . | . . . . Heaviest Build 32 | 11 16 23 32 Greatest Support 36 | 32 32 32 36 Greatest Overweight (x) 1 | . . . 1 Average Overweight (x) . | . . . . Largest Inventory Capacity 10 | 8 10 10 10 Average Capacity 9 | 7 8 10 10 Most Carried 10 | 6 10 10 10 Average Carried 8 | 4 8 9 8 Final Capacity 10 | 8 10 10 10 Final Carried 10 | 6 10 10 8 Class Distribution -------------------- 63% | Mutant 23% | Tank 12% | Skirmisher Dominant Class ---------------- Mutant | -10/Materials Tank | -9/Materials Mutant | -8/Materials Resources | -11 -10 -9 -8 ----------- Run | Yrd Mat Mat Mat Matter Collected 952 | 257 113 314 268 Remotely . | . . . . Salvage Created 1000 | 91 243 256 410 Parts 61 | 8 22 11 20 Haulers Intercepted 2 | . 1 . 1 Recyclers Shooed 3 | . . . 3 Parts Field Recycled . | . . . . Retrieved Matter . | . . . . Parts Self-Destructed . | . . . . Prevented . | . . . . Kills | -11 -10 -9 -8 ------- Run | Yrd Mat Mat Mat Combat Hostiles Destroyed 17 | . 6 5 6 Guns 17 | . 6 5 6 Classes Destroyed 8 | 2 3 1 2 Worker 3 | . . 1 2 Tunneler 3 | 2 1 . . Hauler 2 | . 1 . 1 Recycler 1 | 1 . . . Swarmer 3 | . 3 . . Grunt 10 | . 3 5 2 Sentry 2 | . . . 2 Hunter 2 | . . . 2 Best Kill Streak 4 | 2 4 2 2 Combat Bots Only 4 | . 4 2 1 Max Kills in Single Turn 1 | 1 1 1 1 Gunslinging . | . . . . Exploded . | . . . . Melee . | . . . . Uniques/NPCs Destroyed . | . . . . Combat | -11 -10 -9 -8 -------- Run | Yrd Mat Mat Mat Hostile Shots Fired 118 | . 20 21 77 Missed 22 | . 5 1 16 Damage Taken 1286 | . 195 257 834 Core 263 | . 74 49 140 Absorbed by Shields . | . . . . Core Remaining (%) 85 | 100 70 87 . Volleys Fired 106 | 8 22 27 49 Largest 3 | 2 2 3 3 Hottest 113 | 40 40 100 113 Shots Fired 246 | 16 44 54 132 Gun 236 | 16 44 44 132 Cannon . | . . . . Launcher . | . . . . Special 10 | . . 10 . Kinetic 183 | 16 44 34 89 Thermal 63 | . . 20 43 Explosive . | . . . . Electromagnetic . | . . . . Robot Hit Streak 22 | 4 6 12 22 Robot Miss Streak 3 | 2 2 1 3 Penetration Max . | . . . . Secondary Targets 1 | . 1 . . Max Gunslinging Chain 1 | . 1 . . Shots Hit Robots 159 | 10 26 33 90 Core Hits 59 | 5 16 13 25 Critical Kills . | . . . . Critical Parts Destroyed 1 | . . . 1 Critical Strikes 1 | . . . 1 Destroy 1 | . . . 1 Melee Attacks 36 | . . 11 25 Impact . | . . . . Slashing 36 | . . 11 25 Piercing . | . . . . Sneak Attacks . | . . . . Combat Hostiles . | . . . . Follow-up Attacks . | . . . . Damage Inflicted 1603 | 81 219 288 1015 Guns 1603 | 81 219 288 1015 Cannons . | . . . . Explosions . | . . . . Melee . | . . . . Ramming . | . . . . Kinetic 1190 | 81 219 225 665 Thermal 413 | . . 63 350 Explosive . | . . . . Electromagnetic . | . . . . Impact . | . . . . Slashing . | . . . . Piercing . | . . . . Highest Corruption 1 | . 1 . . Average Corruption 1 | . 1 . . Corruption Purged . | . . . . Corruption Blocked . | . . . . Effects 1 | . 1 . . Message Errors 1 | . 1 . . Overload Shots . | . . . . Overflow Damage . | . . . . Projectiles . | . . . . Explosions . | . . . . Melee . | . . . . Knockbacks . | . . . . Impact . | . . . . Kinetic . | . . . . Secondary . | . . . . Self-Inflicted Damage . | . . . . Shots . | . . . . Rammed . | . . . . Targets Rammed . | . . . . Kicked . | . . . . Crushed . | . . . . Highest Temperature 417 | . 18 235 417 Average Temperature 88 | . 11 77 101 Received Heat Transfer 432 | . 84 132 216 Effects 5 | . . . 5 Shutdowns 1 | . . . 1 Energy Bleed 1 | . . . 1 Interference 2 | . . . 2 Damage (minor) 1 | . . . 1 Siege Activations . | . . . . Robots Corrupted . | . . . . Combat Hostiles . | . . . . Parts Fried . | . . . . Impact Corruptions . | . . . . Robots Melted . | . . . . Combat Hostiles . | . . . . Parts Melted 2 | . . . 2 Heat Transferred 1147 | . . 185 962 Parts Sabotaged . | . . . . Parts Stolen . | . . . . Parts Stripped . | . . . . Power Chain Reactions . | . . . . Alert | -11 -10 -9 -8 ------- Run | Yrd Mat Mat Mat Peak Influence 210 | 15 206 210 195 Initial 88 | . 9 86 88 Average 99 | 4 64 139 112 Maximum Alert Level 1 | . 1 1 . Low Security (%) 95 | 100 88 93 100 Level 1 4 | . 11 6 . Level 2 . | . . . . Level 3 . | . . . . Level 4 . | . . . . Level 5 . | . . . . High Security . | . . . . Max Security . | . . . . Squads Dispatched 3 | . 2 1 . Investigation . | . . . . Extermination . | . . . . Reinforcement 3 | . 2 1 . Assault . | . . . . Garrison . | . . . . Intercept . | . . . . Searches Triggered . | . . . . Construction Impeded . | . . . . Haulers Reinforced . | . . . . Active Scanning Responses . | . . . . Cargo Convoy Interrupts . | . . . . Stealth | -11 -10 -9 -8 --------- Run | Yrd Mat Mat Mat Distress Signals . | . . . . Communications Jammed . | . . . . Distress Signals . | . . . . Times Spotted 31 | . 12 7 12 Peak Tracking Total 5 | . 5 2 3 Tactical Retreats 1 | . 1 . . Traps | -11 -10 -9 -8 ------- Run | Yrd Mat Mat Mat Traps Triggered 1 | . 1 . . Indirectly . | . . . . Trap Hack Attempts . | . . . . Triggered . | . . . . Disarmed . | . . . . Reprogrammed . | . . . . Reused . | . . . . Traps Extracted . | . . . . Installed . | . . . . Triggered . | . . . . Machines | -11 -10 -9 -8 ---------- Run | Yrd Mat Mat Mat Machines Disabled 1 | . . . 1 Max in Single Turn 1 | . . . 1 Machines Repaired . | . . . . Machines Dismantled . | . . . . Machines Sabotaged . | . . . . Overloaded Fab Kills . | . . . . Hacking | -11 -10 -9 -8 --------- Run | Yrd Mat Mat Mat Machines Accessed 2 | . 1 . 1 Terminals 2 | . 1 . 1 Fabricators . | . . . . Repair Stations . | . . . . Recycling Units . | . . . . Scanalyzers . | . . . . Garrison Access . | . . . . Total Hacks 4 | . 2 . 2 Successful 3 | . 2 . 1 Failed 1 | . . . 1 Catastrophic . | . . . . Database Lockouts . | . . . . Manual . | . . . . Terminals 4 | . 2 . 2 Fabricators . | . . . . Repair Stations . | . . . . Recycling Units . | . . . . Scanalyzers . | . . . . Garrison Access . | . . . . Terminal Hacks 3 | . 2 . 1 Terminal Index 1 | . 1 . . Alert Level 1 | . . . 1 Zone Layout 1 | . 1 . . Fabricator Hacks . | . . . . Repair Station Hacks . | . . . . Recycling Unit Hacks . | . . . . Scanalyzer . | . . . . Garrison Access Hacks . | . . . . Unauthorized Hacks . | . . . . Terminals . | . . . . Fabricators . | . . . . Repair Stations . | . . . . Recycling Units . | . . . . Scanalyzers . | . . . . Garrison Access . | . . . . Data Cores Recovered . | . . . . Used . | . . . . Hacking Detections 2 | . 1 . 1 Full Trace Events . | . . . . Feedback Events . | . . . . Feedback Blocked . | . . . . Robot Schematics Acquired . | . . . . Robots Built . | . . . . Authchips . | . . . . Time . | . . . . Total Robot Build Rating . | . . . . Part Schematics Acquired . | . . . . Parts Built . | . . . . Authchips . | . . . . Time . | . . . . Total Part Build Rating . | . . . . Parts Repaired . | . . . . Time . | . . . . Parts Recycled . | . . . . Recycled Matter . | . . . . Retrieved Matter . | . . . . Retrieved Components . | . . . . Parts Scanalyzed . | . . . . Part Schematics Acquired . | . . . . Parts Damaged . | . . . . Bothacking | -11 -10 -9 -8 ------------ Run | Yrd Mat Mat Mat Used RIF Installer . | . . . . Robots Hacked . | . . . . Non-combat . | . . . . Combat . | . . . . Robot Hacks Applied . | . . . . Relay Couplers Released . | . . . . Fabnet Peak Effective % . | . . . . Robots Rewired . | . . . . Allies Hacked . | . . . . Hacks Repelled . | . . . . Allies | -11 -10 -9 -8 -------- Run | Yrd Mat Mat Mat Total Allies . | . . . . Largest Group . | . . . . Highest-Rated Group . | . . . . Highest-Rated Ally . | . . . . Total Orders . | . . . . Ally Attacks . | . . . . Total Damage . | . . . . Kills . | . . . . Allies Corrupted . | . . . . Allies Melted . | . . . . Intel | -11 -10 -9 -8 ------- Run | Yrd Mat Mat Mat Robot Analysis Total . | . . . . Derelict Logs Recovered . | . . . . Drone Launches . | . . . . Drone Recoveries . | . . . . Exploration | -11 -10 -9 -8 ------------- Run | Yrd Mat Mat Mat Turns Passed 1483 | 113 381 398 591 Spaces Moved 845 | 77 267 220 281 Core 3 | 3 . . . Treads . | . . . . Legs . | . . . . Wheels 842 | 74 267 220 281 Hover . | . . . . Flight . | . . . . Fastest Speed 50 | 50 100 90 86 Average Speed 95 | 98 100 99 86 Slowest Speed 105 | 100 100 100 105 Overloaded Moves . | . . . . Propulsion Burnouts . | . . . . Robots Hopped . | . . . . Cave-ins Triggered . | . . . . Exploration Rate (%) 24 | 5 41 21 29 Regions Visited 3 Branch Regions . Pre-discovered Areas . | . . . . Known Exits Taken . | . . . . Unknown Exits Taken 3 | 1 1 1 . Scrap Searched . | . . . . Spaces Dug 29 | . . 13 16 Terrain Destroyed 29 | . . 13 16 Melee 20 | . . 4 16 Projectile 9 | . . 9 . AOE . | . . . . Terrain Rammed . | . . . . Walls Destroyed . | . . . . Machines Disabled . | . . . . Actions | -11 -10 -9 -8 --------- Run | Yrd Mat Mat Mat Total 1247 | 99 353 315 480 Wait 173 | . 33 42 98 Move 842 | 76 266 219 281 Hop . | . . . . Pick Up 31 | 8 15 4 4 Fast Attach 11 | 5 1 1 4 Attach 10 | 2 . 2 6 Detach 1 | . . . 1 Swap 18 | . 3 6 9 Drop 19 | . 13 3 3 Fire 106 | 8 22 27 49 Melee 36 | . . 11 25 Ram . | . . . . Kick . | . . . . Crush . | . . . . Escape Stasis . | . . . . Rewire . | . . . . Trap . | . . . . Miscellaneous . | . . . . Route ------- -11/Scrapyard -10/Materials -9/Materials -8/Materials History --------- Turn | Location | Event 6 | -11/Scrapyard | Discovered new exit (range 15) 114 | -11/Scrapyard | Entered Materials 316 | -10/Materials | Build established: Mutant 417 | -10/Materials | Discovered new exit (range 14) 495 | -10/Materials | Entered another Materials area 495 | -9/Materials | Evolved 2 slots: Utility x1, Weapon x1 886 | -9/Materials | Discovered new exit (range 3) 893 | -9/Materials | Entered another Materials area 893 | -8/Materials | Evolved 2 slots: Propulsion x1, Utility x1 1387 | -8/Materials | Lost 3 parts (1p1n1w) 1484 | -8/Materials | Self-destructed Last Messages --------------- 01457_ Slug penetrates G-50 Soldier. 01458_ R-06 Scavenger collects Prototype Flight Unit. 01460_ Slug penetrates G-50 Soldier. 01462_ R-06 Scavenger collects Med. Storage Unit. 01463_ Slug penetrates G-50 Soldier. 01475_ G-50 Soldier suffers critical hit (Destroy). 01475_ Destroyed Carbon-fiber Leg. 01478_ Adv. Heat Sink melted. 01478_ Lgt. Angular Momentum Engine melted. 01478_ G-50 Soldier destroyed. 01478_ Slug penetrates Door. 01480_ K-01 Serf collects debris. 01480_ Imp. Sensor Array destroyed. 01481_ Slug penetrates Wall. 01482_ Overheating: Wheel damaged (-3). 01482_ K-01 Serf collects debris. 01483_ Power failure, Imp. Ion Engine shutdown. Map ----- +----------------------------------------------------+ | ########?????????????????????????????????????????? | | #?????????????????????????????????????????? | | #?????????????????????????????????????????? | | #?????????????????????????????????????????? | | = #?????????????????????????????????????????? | | ##+##"##????????##???????????????????????????????? | | ###"#########"#???????????????????????????????? | | ####?## #????????????????????????????????? | | ####### "" """ #????????????????????????????????? | | # "T """ #??????????????????###? ###??????? | | + "" """ #????????????????? #??????? | | # ##??????????????# """ """ #??????? | | ### # "#??????????????# """ """ #??????? | | #?# # ##??????????????# """ """ #??????? | | ### # #???????????????# #??????? | | ## ####+######????????????????? #??????? | | !## #######?????????###???? #??????? | | !## + """ ########### #?????? #??????? | | !## # """ # """ ##????##+#########??? | | ########## # """ # """ [ ####### + #??? | | #????????# # # " " # # # """ #??? | | ########## # # = # # # """ #??? | | / # [ "" # + + """ #??? | | # # R" # [ # # #??? | | # # """ # # # = #??? | | +######### ####### %@ # # ########??? | | ## ##########g########### ###???????? | | ## ! ag #?????????? | | ## ^=k [ ?????????? | | ## ^ k ????????? | | ## ########### !] ???????? | | ########?????????? ^ "" ]] ???????? | | #????????????????? """"" ??????? | | #????????????????? """"" ?????? | | #????????????????? """"" ?????? | | ########????????????????? ""? ?????? | | #??????????????????? ? ?????? | | "" #???????????????????# ! ?? ???????? | | "" #???????????????????? ?? """ ?????????? | | "" #???????????????????? ?????????????????? | | #???????????????????? ?????????????????? | | ######????????????????????? "Y" ?????????????????? | | #???????????????????????????"????????????????????? | | #????????????????????????????????????????????????? | | ????????????????????????????????????????????????? | | ????????????????????????????????????????????????? | | ????????????????????????????????????????????????? | | ????????????????????????????????????????????????? | | " ???????????????????????????????????????????????? | | " ???????????????????????????????????????????????? | +----------------------------------------------------+ Best States ------------- Heat Dissipation 41 Energy Generation 14 Energy Capacity 265 Matter Stores 300 Matter Capacity 300 Sight Range 16 Robot Scan Range 15 Terrain Scan Range 16 Terrain Scan Density 10 Armor Coverage 300 Evasion (%) 42 Item Schematics ----------------- None Robot Schematics ------------------ None Fabricated ------------ Nothing Alien Tech Used ----------------- None Achievements -------------- None Challenges ------------ None Game ------ Seed JunkSkeletonInterrupter Manual? 0 Play Time 00:33:52 Cumulative 35.2 hours Start 2025.03.25 @ 17:57:21 End 2025.03.25 @ 19:07:37 Sessions 1 Manual Loads 0 Difficulty Rogue Special Mode None Game No. 37 Rogue 37 Adventurer 0 Explorer 0 Win Type - Total 0 Types 0/0/0/0/0/0/0/0/0 Lore% 11 Gallery% 23 Achievement% 23 Wizard Run 0 Options --------- Layout 2 ASCII 0 Keyboard 0 Movement Numpad Keybinds 0 Fullscreen 1 Font 16/SmallcapsGlow Map View 25x24 Zoom Use 97% Tactical HUD 1 Map Filters NONE Filters NONE Steam SD RUN: 5b2beb52-df59-4bbf-aa70-7c8050d6e8a5